bitfinex-derivatives/quotes_SOLF0:USTF0_20241231
["timestamp","ask_amount","ask_price","bid_price","bid_amount"]
[1735685075862,2.6083,192.05,192.03,3.04]
[1735685079060,2.6082,192.06,192.03,3.04]
[1735685079266,2.6082,192.06,192.04,6.67278899]
[1735685080865,10.58644093,192.12,192.04,6.67278899]
[1735685081169,2.6083,192.05,192.04,6.67278899]
[1735685088070,2.6082,192.06,192.04,6.67278899]
[1735685090769,2.608,192.07,192.04,6.67278899]
[1735685094977,18.64088037,192.12,192.04,6.67278899]
[1735685095173,3.9135026,192.12,192.06,6.67278899]
[1735685095375,3.9135026,192.12,192.08,6.67278899]
[1735685095677,2.6075,192.11,192.08,9.71278899]
[1735685095875,21.84482482,192.13,192.1,6.67278899]
[1735685096378,21.84482482,192.15,192.1,6.67278899]
[1735685096876,2.6071,192.14,192.1,9.28028899]
[1735685097470,2.6072,192.13,192.1,9.28028899]
[1735685099377,2.6072,192.13,192.08,3.04]
[1735685099579,2.6072,192.13,192.09,9.28048899]
[1735685109182,2.6073,192.12,192.09,9.28048899]
[1735685109376,2.6073,192.12,192.09,6.67278899]
[1735685110482,2.6075,192.11,192.09,6.67278899]
[1735685111181,2.6075,192.11,192.08,3.04]
[1735685115095,2.6075,192.11,192.08,9.71278899]
[1735685116291,2.6075,192.11,192.09,3.0]
[1735685120592,6.67278899,192.16,192.09,3.0]
[1735685120793,16.84939157,192.16,192.09,3.0]
[1735685120987,3.91249167,192.15,192.09,3.0]
[1735685121182,2.6076,192.11,192.1,3.0]
[1735685126390,3.91249167,192.14,192.1,9.67278899]
[1735685126596,2.6074,192.12,192.1,9.67278899]
[1735685129497,2.6074,192.12,192.1,3.0]
[1735685130199,2.6074,192.12,192.1,9.67278899]
[1735685133008,14.08909425,192.15,192.1,9.67278899]
[1735685133206,2.6071,192.14,192.11,2.6074]
[1735685135407,22.18348125,192.16,192.1,9.67278899]
[1735685135605,2.6073,192.13,192.1,12.28028899]
[1735685139414,2.6073,192.13,192.1,5.6075]
[1735685139612,2.6073,192.13,192.1,12.28028899]
[1735685149114,2.6073,192.13,192.1,9.28028899]
[1735685149314,2.6073,192.13,192.11,2.98]
[1735685152317,2.6073,192.13,192.12,2.98]
[1735685212155,2.607,192.14,192.12,2.98]
[1735685220567,2.6072,192.13,192.12,2.98]
[1735685224875,11.99399084,192.16,192.12,2.98]
[1735685225074,2.6071,192.14,192.12,2.98]
[1735685225478,2.6072,192.13,192.12,2.98]
[1735685227079,2.6071,192.14,192.12,2.98]
[1735685230780,2.6069,192.15,192.12,5.5873]
[1735685235982,2.6069,192.15,192.12,2.98]
[1735685236183,2.6069,192.15,192.12,5.5873]
[1735685238286,2.607,192.14,192.12,5.5873]
[1735685253794,11.99399084,192.16,192.12,2.98]
[1735685254095,2.6069,192.15,192.13,2.6072]
[1735685256894,2.6069,192.15,192.12,5.5873]
[1735685260389,11.99399084,192.16,192.12,2.98]
[1735685260690,2.6071,192.14,192.12,2.98]
[1735685265802,2.607,192.15,192.12,5.5873]
[1735685270605,2.6069,192.15,192.12,5.5873]
[1735685274006,2.6069,192.15,192.13,2.98]
[1735685274705,2.6069,192.15,192.13,9.65278899]
[1735685278313,2.6069,192.15,192.13,6.67278899]
[1735685278511,2.6069,192.15,192.14,2.98]
[1735685280211,11.99399084,192.18,192.14,2.98]
[1735685280407,3.91241096,192.18,192.15,2.6068]
[1735685281320,18.27711094,192.19,192.15,9.27958899]
[1735685281512,6.51779061,192.18,192.15,9.27958899]
[1735685281905,2.6066,192.18,192.15,9.27958899]
[1735685282210,8.09322804,192.2,192.17,6.67278899]
[1735685282411,10.19553106,192.21,192.17,6.67278899]
[1735685282603,14.10628325,192.21,192.17,6.67278899]
[1735685282803,10.19553106,192.21,192.17,6.67278899]
[1735685283003,3.91075219,192.21,192.18,2.6064]
[1735685283207,3.91075219,192.21,192.19,2.98]
[1735685283412,16.71238325,192.22,192.19,2.98]
[1735685284215,12.80163106,192.22,192.19,2.98]
[1735685284406,2.6061,192.22,192.19,2.98]
[1735685285015,2.6061,192.21,192.19,2.98]
[1735685290717,2.606,192.22,192.2,2.98]
[1735685294420,20.767967,192.25,192.2,2.98]
[1735685294717,2.6058,192.23,192.2,5.5862]
[1735685296816,6.67278899,192.25,192.2,2.98]
[1735685297123,2.6057,192.24,192.2,2.98]
[1735685297322,6.67278899,192.25,192.2,2.98]
[1735685297523,2.6059,192.23,192.2,5.5862]
[1735685300425,6.67278899,192.25,192.2,2.98]
[1735685301318,10.58346153,192.25,192.2,2.98]
[1735685301525,2.6059,192.23,192.2,5.5862]
[1735685304729,2.6059,192.23,192.21,2.98]
[1735685307319,2.6059,192.23,192.22,2.98]
[1735685310232,3.91068838,192.26,192.2,2.6062]
[1735685310525,2.606,192.22,192.21,2.98]
[1735685319641,2.6062,192.21,192.18,9.27928899]
[1735685319937,2.6062,192.21,192.19,2.98]
[1735685320136,2.6062,192.21,192.18,9.27928899]
[1735685320335,2.6068,192.16,192.13,9.27988899]
[1735685320533,6.67278899,192.21,192.14,2.98]
[1735685320934,2.607,192.14,192.13,6.67278899]
[1735685321233,2.607,192.14,192.13,9.65278899]
[1735685344458,2.607,192.14,192.13,6.67278899]
[1735685344759,2.607,192.14,192.13,9.65278899]
[1735685345160,2.607,192.15,192.13,9.65278899]
[1735685345761,2.607,192.15,192.13,2.98]
[1735685345959,2.607,192.15,192.13,9.65278899]
[1735685347362,2.607,192.15,192.13,2.98]
[1735685347565,2.607,192.15,192.13,9.65278899]
[1735685355367,3.91068838,192.17,192.13,9.65278899]
[1735685355571,16.69410559,192.18,192.15,9.27968899]
[1735685355967,38.53893041,192.18,192.15,9.27968899]
[1735685356168,34.62824203,192.18,192.15,9.27968899]
[1735685356370,24.45132482,192.18,192.15,9.27968899]
[1735685356873,2.6065,192.18,192.15,9.27968899]
[1735685357073,6.51846241,192.18,192.15,9.27968899]
[1735685357474,14.58479782,192.18,192.15,9.27968899]
[1735685357674,24.76869782,192.18,192.15,9.27968899]
[1735685357875,3.91196241,192.17,192.15,9.27968899]
[1735685358174,2.6066,192.17,192.15,9.27968899]
[1735685360572,2.6066,192.17,192.15,6.67278899]
[1735685362877,14.59916643,192.17,192.15,6.67278899]
[1735685365472,2.6068,192.16,192.15,6.67278899]
[1735685368376,12.00871052,192.17,192.13,2.98]
[1735685368576,2.607,192.14,192.13,9.65278899]
[1735685369383,2.607,192.14,192.13,2.98]
[1735685373979,2.607,192.14,192.11,2.6074]
[1735685374174,2.607,192.14,192.13,6.67278899]
[1735685388088,2.607,192.14,192.13,9.65278899]
[1735685400509,2.607,192.14,192.13,6.67278899]
[1735685400705,2.607,192.14,192.13,9.65278899]
[1735685404004,2.607,192.14,192.13,2.98]
[1735685406211,2.6072,192.13,192.12,6.67278899]
[1735685406407,2.6072,192.13,192.12,9.65278899]
[1735685414518,2.6072,192.13,192.12,2.98]
[1735685414711,2.6074,192.11,192.1,6.67278899]
[1735685414918,2.6074,192.11,192.1,9.65278899]
[1735685419722,2.6074,192.11,192.1,2.98]
[1735685420424,2.6077,192.09,192.08,6.67278899]
[1735685420723,2.6077,192.09,192.08,9.65278899]
[1735685421424,2.6077,192.09,192.08,2.98]
[1735685422322,2.6079,192.08,192.07,6.67278899]
[1735685422622,2.6079,192.08,192.07,9.65278899]
[1735685424017,2.6079,192.08,192.07,2.98]
[1735685424218,2.6079,192.08,192.07,6.67278899]
[1735685425523,2.608,192.07,192.06,2.98]
[1735685433524,2.6077,192.1,192.05,9.65278899]
[1735685433726,12.00871052,192.11,192.05,9.65278899]
[1735685433933,3.91196241,192.11,192.05,9.65278899]
[1735685434525,2.6081,192.07,192.05,9.65278899]
[1735685435427,12.00871052,192.11,192.05,9.65278899]
[1735685435632,2.6081,192.07,192.05,2.98]
[1735685438329,3.91196241,192.1,192.05,2.98]
[1735685438531,3.91196241,192.11,192.05,2.98]
[1735685438731,2.6081,192.07,192.04,2.6084]
[1735685438932,6.67278899,192.1,192.04,2.6084]
[1735685439441,2.6081,192.07,192.04,2.6084]
[1735685449939,6.67278899,192.08,192.04,2.6084]
[1735685450139,2.6081,192.06,192.04,2.6084]
[1735685463446,6.52188238,192.06,192.04,2.6084]
[1735685463642,2.6081,192.06,192.04,2.6084]
[1735685464255,2.6083,192.05,192.03,2.6085]
[1735685464850,2.6083,192.05,192.02,5.5886]
[1735685465055,2.6084,192.04,192.02,5.5886]
[1735685465351,2.6084,192.04,192.02,2.98]
[1735685465947,2.6084,192.04,192.01,2.6087]
[1735685467444,2.6086,192.03,192.0,2.6088]
[1735685470152,2.6087,192.02,192.0,2.6088]
[1735685470355,2.6087,192.02,191.99,2.609]
[1735685470559,18.71493517,192.04,191.97,4.5538]
[1735685471054,2.6089,192.01,191.98,2.6092]
[1735685472757,10.58657137,192.04,191.97,4.5538]
[1735685472951,2.6087,192.02,191.97,4.1831]
[1735685473256,14.16833526,192.03,191.97,7.1631]
[1735685473451,22.29220664,192.03,191.97,7.1631]
[1735685473758,2.609,192.0,191.97,7.1631]
[1735685475558,2.609,192.0,191.97,5.5893]
[1735685477154,6.67278899,192.02,191.97,2.98]
[1735685477356,2.6092,191.98,191.97,2.98]
[1735685477554,20.84200575,192.02,191.95,2.6095]
[1735685477753,16.92734187,192.02,191.95,2.6095]
[1735685477951,6.67278899,192.02,191.95,2.6095]
[1735685478554,2.6093,191.98,191.95,2.6095]
[1735685479157,2.6095,191.96,191.94,2.98]
[1735685479360,6.67278899,191.98,191.94,2.98]
[1735685480459,2.6096,191.95,191.94,2.98]
[1735685481658,2.6096,191.95,191.93,2.98]
[1735685484661,2.6098,191.94,191.93,2.98]
[1735685487364,2.6098,191.94,191.93,9.65278899]
[1735685487565,2.6097,191.95,191.93,9.65278899]
[1735685488967,2.6097,191.95,191.93,6.67278899]
[1735685492066,2.6097,191.95,191.92,35.67435376]
[1735685492267,2.6097,191.95,191.92,42.34714275]
[1735685492973,2.6097,191.95,191.92,5.59]
[1735685493170,2.6097,191.95,191.92,12.26278899]
[1735685493474,2.6098,191.94,191.92,12.26278899]
[1735685495677,2.6098,191.94,191.92,5.59]
[1735685497577,2.6098,191.94,191.92,2.98]
[1735685507379,2.6099,191.93,191.92,2.98]
[1735685509282,2.6099,191.93,191.9,9.4563465]
[1735685509283,2.61,191.92,191.9,5.76355751]
[1735685509873,2.61,191.92,191.9,2.78355751]
[1735685510072,2.6102,191.91,191.9,2.78355751]
[1735685511183,2.6104,191.89,191.88,2.98]
[1735685511683,6.67278899,191.93,191.86,5.5908]
[1735685512280,6.67278899,191.93,191.86,2.6108]
[1735685512479,6.67278899,191.93,191.85,12.26368899]
[1735685512679,6.67278899,191.93,191.85,5.5909]
[1735685512979,6.67278899,191.91,191.85,5.5909]
[1735685514682,2.6106,191.88,191.85,5.5909]
[1735685517579,2.6107,191.87,191.84,12.26388899]
[1735685518089,2.6111,191.85,191.83,2.98]
[1735685518290,6.67278899,191.87,191.83,2.98]
[1735685518490,6.67278899,191.89,191.82,2.6113]
[1735685519489,6.67278899,191.89,191.8,2.6116]
[1735685519690,6.67278899,191.87,191.81,2.98]
[1735685519891,6.67278899,191.87,191.8,2.6116]
[1735685520289,2.6113,191.83,191.8,5.5916]
[1735685520491,6.67278899,191.87,191.8,2.98]
[1735685520988,2.6115,191.81,191.8,2.98]
[1735685521194,6.67278899,191.85,191.75,4.575]
[1735685521392,6.67278899,191.83,191.77,2.612]
[1735685522299,2.6118,191.79,191.76,12.26498899]
[1735685522702,2.6118,191.79,191.76,9.28498899]
[1735685522998,6.67278899,191.83,191.74,6.67278899]
[1735685523198,2.612,191.78,191.74,12.26518899]
[1735685523994,2.612,191.78,191.75,2.6123]
[1735685524398,2.612,191.78,191.74,9.65278899]
[1735685524602,6.67278899,191.81,191.74,12.26518899]
[1735685525598,2.612,191.78,191.74,12.26518899]
[1735685525798,2.612,191.78,191.74,9.65278899]
[1735685525999,6.67278899,191.81,191.73,4.00937497]
[1735685526193,2.6122,191.77,191.73,4.00937497]
[1735685526394,6.67278899,191.79,191.73,4.00937497]
[1735685527601,2.6123,191.76,191.73,4.00937497]
[1735685527903,6.67278899,191.79,191.73,4.00937497]
[1735685528098,6.67278899,191.79,191.72,5.5927]
[1735685528402,6.67278899,191.79,191.72,12.26548899]
[1735685528793,6.67278899,191.79,191.72,5.5927]
[1735685529403,2.6123,191.75,191.72,5.5927]
[1735685530202,6.67278899,191.77,191.69,6.67278899]
[1735685530404,6.67278899,191.77,191.7,2.6129]
[1735685530600,6.67278899,191.77,191.69,6.67278899]
[1735685530905,2.6127,191.73,191.69,9.28588899]
[1735685532707,6.67278899,191.76,191.69,9.28588899]
[1735685533215,2.6128,191.72,191.69,6.67278899]
[1735685535308,2.6128,191.72,191.68,2.6133]
[1735685537605,11.21898899,191.76,191.68,2.6133]
[1735685538105,2.6129,191.71,191.68,2.6133]
[1735685539107,6.67278899,191.74,191.66,2.98]
[1735685539306,2.6132,191.69,191.66,5.5935]
[1735685540411,6.67278899,191.72,191.66,2.98]
[1735685540612,2.6133,191.68,191.65,2.6137]
[1735685541317,2.6135,191.67,191.64,2.6138]
[1735685541512,6.67278899,191.7,191.61,6.67278899]
[1735685541814,6.67278899,191.7,191.61,9.65278899]
[1735685542409,2.6134,191.68,191.63,2.6139]
[1735685542616,6.67278899,191.7,191.63,2.6139]
[1735685543116,2.6136,191.67,191.63,2.6139]
[1735685545016,6.67278899,191.7,191.63,2.6139]
[1735685545216,2.6137,191.66,191.63,2.6139]
[1735685550017,2.6137,191.66,191.62,2.6141]
[1735685550413,6.67278899,191.68,191.62,2.6141]
[1735685550620,2.6137,191.65,191.62,2.6141]
[1735685556819,2.6139,191.64,191.62,2.6141]
[1735685557323,2.6137,191.65,191.62,2.6141]
[1735685559718,6.67278899,191.64,191.56,4.17647423]
[1735685559918,2.6143,191.61,191.58,2.6146]
[1735685560726,2.6145,191.6,191.57,2.6147]
[1735685561131,9.28728899,191.6,191.57,2.6147]
[1735685562124,2.6146,191.59,191.56,2.6148]
[1735685562327,6.67278899,191.6,191.56,2.6148]
[1735685562527,6.67278899,191.6,191.53,2.98]
[1735685563221,2.6147,191.58,191.53,2.6152]
[1735685563524,2.6147,191.58,191.53,2.98]
[1735685563933,2.6147,191.58,191.54,2.6151]
[1735685564134,6.67278899,191.58,191.54,2.6151]
[1735685565029,2.6148,191.57,191.54,2.6151]
[1735685566529,2.6149,191.56,191.53,2.6153]
[1735685569631,6.67278899,191.6,191.51,2.98]
[1735685569827,2.6152,191.55,191.52,2.6155]
[1735685570430,6.67278899,191.6,191.52,2.6155]
[1735685570729,2.6152,191.54,191.52,2.6155]
[1735685570932,2.6152,191.54,191.51,5.5956]
[1735685571531,2.6153,191.53,191.51,2.98]
[1735685572136,2.6153,191.53,191.5,61.20993546]
[1735685575536,6.67278899,191.58,191.5,61.20993546]
[1735685575739,2.6155,191.52,191.5,2.6157]
[1735685576036,6.67278899,191.56,191.49,3.62090359]
[1735685576536,2.6157,191.51,191.49,3.62090359]
[1735685583035,2.6157,191.5,191.49,3.62090359]
[1735685583630,6.67278899,191.56,191.49,3.62090359]
[1735685583631,2.6157,191.51,191.49,3.62090359]
[1735685585345,2.6157,191.5,191.49,3.62090359]
[1735685585636,2.6157,191.5,191.48,22.46280815]
[1735685585637,6.67278899,191.52,191.48,22.46280815]
[1735685585843,2.6158,191.5,191.48,22.46280815]
[1735685586240,6.67278899,191.52,191.48,22.46280815]
[1735685586844,2.6159,191.49,191.48,22.46280815]
[1735685594452,9.28868899,191.49,191.48,22.46280815]
[1735685597355,9.28868899,191.49,191.48,10.83880815]
[1735685603356,6.67278899,191.49,191.41,2.6169]
[1735685603557,2.98,191.52,191.4,2.617]
[1735685603558,6.67278899,191.45,191.4,2.617]
[1735685603763,6.67278899,191.45,191.39,2.98]
[1735685604163,2.6168,191.43,191.39,5.5971]
[1735685604365,6.67278899,191.43,191.38,1.5918]
[1735685604663,6.67278899,191.43,191.38,4.5718]
[1735685604859,2.6171,191.41,191.38,7.1891]
[1735685605362,6.67278899,191.43,191.38,1.5918]
[1735685605561,6.67278899,191.41,191.37,1.4853]
[1735685606363,2.98,191.46,191.37,1.4853]
[1735685606562,6.67278899,191.4,191.37,1.4853]
[1735685607263,2.6174,191.38,191.37,1.4853]
[1735685608160,2.6177,191.36,191.35,2.98]
[1735685608360,6.67278899,191.4,191.33,6.83815812]
[1735685608559,6.67278899,191.4,191.34,2.98]
[1735685608759,2.6179,191.35,191.34,2.98]
[1735685608961,6.67278899,191.4,191.34,2.98]
[1735685609165,6.67278899,191.4,191.33,6.83815812]
[1735685609363,6.67278899,191.42,191.34,6.67278899]
[1735685610157,2.6172,191.4,191.35,2.6177]
[1735685610464,2.98,191.45,191.35,2.6177]
[1735685610658,2.6171,191.4,191.35,2.6177]
[1735685610863,6.67278899,191.42,191.35,2.6177]
[1735685612965,2.6171,191.4,191.35,2.6177]
[1735685613166,6.67278899,191.42,191.34,2.6179]
[1735685613668,2.6175,191.38,191.34,2.6179]
[1735685614963,2.6176,191.37,191.34,2.6179]
[1735685615367,6.67278899,191.42,191.35,2.6177]
[1735685615560,2.6173,191.39,191.34,2.98]
[1735685615966,2.6173,191.39,191.36,2.6176]
[1735685616467,2.6172,191.4,191.35,2.6177]
[1735685616765,6.67278899,191.42,191.35,2.6177]
[1735685617270,2.6174,191.39,191.35,2.6177]
[1735685618663,2.6172,191.4,191.34,5.5979]
[1735685618868,6.67278899,191.4,191.34,2.98]
[1735685620167,2.6174,191.39,191.34,5.5979]
[1735685620361,6.67278899,191.4,191.34,5.5979]
[1735685621671,2.6175,191.37,191.34,5.5979]
[1735685621872,2.98,191.44,191.35,2.6178]
[1735685622066,6.67278899,191.41,191.35,2.6178]
[1735685622465,2.6175,191.37,191.34,5.5979]
[1735685622866,11.97592125,191.48,191.33,9.81815812]
[1735685623170,2.6172,191.4,191.37,2.6175]
[1735685624470,6.67278899,191.42,191.36,1.5434]
[1735685624673,2.6173,191.39,191.36,4.161]
[1735685628768,2.6173,191.39,191.36,2.6176]
[1735685629672,2.6173,191.39,191.37,2.6175]
[1735685630669,6.67278899,191.4,191.24,87.37929928]
[1735685630870,6.67278899,191.4,191.29,6.67278899]
[1735685631069,2.6179,191.35,191.31,9.29108899]
[1735685631472,6.67278899,191.4,191.31,12.27108899]
[1735685631773,2.6179,191.35,191.31,12.27108899]
[1735685632574,2.6179,191.35,191.32,2.6182]
[1735685632972,2.6177,191.36,191.32,2.6182]
[1735685635668,6.67278899,191.4,191.32,2.6182]
[1735685635976,2.6178,191.35,191.32,2.6182]
[1735685636574,2.6181,191.33,191.31,9.65278899]
[1735685636777,6.67278899,191.4,191.31,9.65278899]
[1735685637476,2.6178,191.36,191.33,2.6181]
[1735685637776,6.67278899,191.4,191.32,6.67278899]
[1735685637975,3.92786829,191.42,191.32,6.67278899]
[1735685638176,6.67278899,191.41,191.32,6.67278899]
[1735685638678,6.67278899,191.41,191.32,9.29098899]
[1735685638679,2.6179,191.35,191.32,9.29098899]
[1735685639775,2.6179,191.35,191.32,6.67278899]
[1735685639977,2.6175,191.38,191.32,6.67278899]
[1735685640174,16.84866824,191.42,191.34,6.67278899]
[1735685640375,6.67278899,191.42,191.33,2.6181]
[1735685640573,2.6179,191.35,191.32,6.67278899]
[1735685641072,2.6179,191.35,191.32,9.29088899]
[1735685645479,2.618,191.34,191.32,6.67278899]
[1735685646480,2.6181,191.33,191.32,6.67278899]
[1735685648581,2.6182,191.32,191.31,2.98]
[1735685650478,2.6183,191.31,191.3,6.67278899]
[1735685650678,6.67278899,191.38,191.3,9.71278899]
[1735685651883,2.6183,191.32,191.3,9.71278899]
[1735685653188,10.60075009,191.4,191.3,9.71278899]
[1735685653393,2.618,191.34,191.32,6.67278899]
[1735685655183,2.6181,191.33,191.32,6.67278899]
[1735685661390,2.6181,191.33,191.31,9.29108899]
[1735685662497,2.6181,191.33,191.31,6.67278899]
[1735685663494,10.60075009,191.4,191.31,6.67278899]
[1735685663695,28.86073659,191.4,191.31,6.67278899]
[1735685663899,2.6182,191.33,191.31,6.67278899]
[1735685664895,2.6182,191.33,191.3,5.6584]
[1735685665095,2.6182,191.33,191.31,6.67278899]
[1735685665296,2.6182,191.32,191.31,6.67278899]
[1735685672398,2.6184,191.31,191.3,6.67278899]
[1735685672799,2.6184,191.31,191.28,2.6187]
[1735685672999,2.6184,191.31,191.3,6.67278899]
[1735685675097,2.6185,191.3,191.29,6.67278899]
[1735685684213,14.1385672,191.35,191.25,2.98]
[1735685684518,3.92874188,191.35,191.27,6.67278899]
[1735685684717,12.01241789,191.35,191.27,6.67278899]
[1735685684912,22.22224321,191.35,191.27,6.67278899]
[1735685685108,2.6187,191.29,191.27,6.67278899]
[1735685685412,10.60153087,191.34,191.27,6.67278899]
[1735685685618,2.6188,191.28,191.27,6.67278899]
[1735685686522,2.6189,191.27,191.25,9.29198899]
[1735685686721,2.6189,191.27,191.25,6.67278899]
[1735685688216,2.6189,191.28,191.25,9.29188899]
[1735685688927,10.60172674,191.34,191.25,9.29188899]
[1735685688928,2.6189,191.27,191.25,9.29188899]
[1735685689423,2.6189,191.27,191.25,6.67278899]
[1735685689622,2.6189,191.27,191.25,9.29198899]
[1735685695220,2.6189,191.27,191.25,2.6192]
[1735685695419,2.6189,191.27,191.25,6.67278899]
[1735685695622,2.6189,191.27,191.25,9.29198899]
[1735685696429,2.6189,191.27,191.25,6.67278899]
[1735685698525,2.6186,191.3,191.25,6.67278899]
[1735685698729,3.0536,191.31,191.25,6.67278899]
[1735685699325,2.619,191.27,191.25,6.67278899]
[1735685700030,2.619,191.27,191.24,6.87454982]
[1735685700225,2.619,191.27,191.25,6.67278899]
[1735685700620,2.6187,191.29,191.26,2.6189]
[1735685700823,2.6187,191.29,191.27,6.67278899]
[1735685701128,2.6188,191.28,191.27,6.67278899]
[1735685703030,6.67278899,191.34,191.27,6.67278899]
[1735685703231,2.6186,191.3,191.27,9.29158899]
[1735685703734,9.29058899,191.36,191.29,9.29128899]
[1735685703929,2.98,191.36,191.29,9.29128899]
[1735685704130,9.65278899,191.36,191.29,9.29128899]
[1735685704431,2.6183,191.32,191.29,9.29128899]
[1735685705327,2.6183,191.32,191.29,2.6185]
[1735685705527,2.6183,191.32,191.29,9.29128899]
[1735685706330,2.6184,191.31,191.29,9.29128899]
[1735685706834,2.6184,191.31,191.29,6.67278899]
[1735685708933,2.6184,191.31,191.28,2.6187]
[1735685709233,2.6184,191.31,191.28,9.29148899]
[1735685709436,6.67278899,191.34,191.28,6.67278899]
[1735685709633,2.6186,191.3,191.28,6.67278899]
[1735685712834,6.67278899,191.32,191.27,2.6188]
[1735685713035,6.67278899,191.32,191.24,6.87464982]
[1735685713332,6.67278899,191.32,191.25,6.67278899]
[1735685713537,2.6189,191.27,191.24,4.25534982]
[1735685713737,2.6189,191.27,191.25,6.67278899]
[1735685720337,2.6189,191.27,191.24,6.87454982]
[1735685720534,2.6189,191.27,191.25,6.67278899]
[1735685720740,2.619,191.26,191.25,6.67278899]
[1735685724144,2.6192,191.25,191.24,4.25534982]
[1735685725544,2.6193,191.24,191.23,49.42469195]
[1735685725746,2.6193,191.24,191.23,46.44469195]
[1735685725945,6.67278899,191.28,191.18,1.5038]
[1735685726148,6.67278899,191.28,191.2,9.65278899]
[1735685726552,6.67278899,191.28,191.2,6.67278899]
[1735685726846,2.6196,191.22,191.19,5.5999]
[1735685727052,2.6196,191.22,191.2,6.67278899]
[1735685727447,2.6195,191.23,191.2,9.29258899]
[1735685728152,2.6196,191.22,191.2,6.67278899]
[1735685729144,6.67278899,191.28,191.2,6.67278899]
[1735685729347,2.6197,191.21,191.2,6.67278899]
[1735685729551,2.6197,191.21,191.19,2.98]
[1735685731146,2.6197,191.21,191.18,12.27278899]
[1735685732245,2.6197,191.21,191.18,9.29278899]
[1735685732446,2.6197,191.21,191.18,12.27278899]
[1735685733450,6.67278899,191.22,190.97,291.26433094]
[1735685733653,6.67278899,191.18,191.09,6.67278899]
[1735685733852,9.65278899,191.18,191.09,6.67278899]
[1735685734057,2.6208,191.14,191.11,2.621]
[1735685735151,3.0578,191.24,191.09,6.67278899]
[1735685735455,28.20847437,191.24,191.11,6.67278899]
[1735685735665,6.67278899,191.2,191.12,2.98]
[1735685735957,2.6202,191.18,191.14,2.6206]
[1735685736159,6.67278899,191.18,191.12,2.98]
[1735685737353,6.67278899,191.16,191.0,7.28160827]
[1735685737557,6.67278899,191.14,191.06,8.17168899]
[1735685738259,6.67278899,191.14,191.07,2.98]
[1735685738459,2.6209,191.13,191.1,2.6212]
[1735685738653,2.6209,191.13,191.07,2.98]
[1735685739450,2.6209,191.13,191.1,2.6212]
[1735685740059,2.621,191.12,191.08,2.6214]
[1735685740253,2.98,191.18,191.07,2.98]
[1735685740457,6.67278899,191.15,191.07,9.65278899]
[1735685741564,2.6208,191.13,191.07,9.65278899]
[1735685742559,2.6208,191.13,191.09,2.6213]
[1735685743062,6.67278899,191.15,191.07,9.65278899]
[1735685743267,2.621,191.12,191.08,2.6215]
[1735685744362,2.62,191.19,191.13,2.6208]
[1735685744567,3.0578,191.24,191.09,6.67278899]
[1735685744865,6.67278899,191.17,191.09,6.67278899]
[1735685745262,9.29308899,191.17,191.13,2.6207]
[1735685746473,6.67278899,191.17,191.12,2.98]
[1735685746767,9.29288899,191.18,191.14,2.6206]
[1735685747170,2.6201,191.18,191.14,2.6206]
[1735685747366,9.29288899,191.18,191.14,2.6206]
[1735685747565,2.6203,191.17,191.14,2.6206]
[1735685747766,6.67278899,191.16,191.12,2.98]
[1735685748069,2.6211,191.11,191.06,11.15168899]
[1735685748269,2.6211,191.11,191.06,4.4789]
[1735685748470,2.6211,191.11,191.06,9.65278899]
[1735685749174,2.6211,191.11,191.06,12.27438899]
[1735685749467,2.6211,191.11,191.06,9.65278899]
[1735685750068,2.6211,191.11,191.07,2.6215]
[1735685751372,2.6211,191.11,191.08,2.6215]
[1735685751669,2.6212,191.1,191.06,9.65278899]
[1735685751873,6.67278899,191.13,191.06,9.65278899]
[1735685752374,2.6211,191.11,191.08,2.6214]
[1735685755872,2.98,191.17,191.08,2.6214]
[1735685756073,2.621,191.12,191.06,9.65278899]
[1735685757077,2.621,191.12,191.08,2.6214]
[1735685762078,2.6215,191.08,191.05,2.6219]
[1735685763178,2.6217,191.07,191.04,5.602]
[1735685763379,6.67278899,191.1,191.04,2.98]